bitfinex-derivatives/quotes_SOLF0:USTF0_20240923
["timestamp","ask_amount","ask_price","bid_price","bid_amount"]
[1727111161414,13.1377,143.36,143.31,9.65]
[1727111161808,9.65,143.37,143.33,9.65]
[1727111162005,4.92785694,143.38,143.33,9.65]
[1727111162006,13.21025694,143.38,143.33,9.65]
[1727111162199,13.21025694,143.38,143.26,1.3374]
[1727111162200,9.65,143.4,143.36,9.65]
[1727111162405,1.04025051,143.39,143.37,9.65]
[1727111162607,1.04025051,143.39,143.34,9.65]
[1727111162608,9.65,143.39,143.34,9.65]
[1727111162912,9.65,143.37,143.33,3.4881]
[1727111163613,13.12158218,143.37,143.33,3.4881]
[1727111164509,3.47158218,143.37,143.34,3.488]
[1727111165416,16.60888218,143.37,143.32,9.65]
[1727111165617,9.65,143.36,143.31,9.65]
[1727111165917,9.65,143.36,143.31,13.1385]
[1727111166208,9.65,143.33,143.28,9.65]
[1727111166407,9.65,143.33,143.29,3.4891]
[1727111166607,1.3555,143.41,143.26,10.9874]
[1727111166608,13.1389,143.31,143.26,10.9874]
[1727111166817,9.65,143.3,143.26,1.3374]
[1727111167112,9.65,143.3,143.26,10.9874]
[1727111167419,13.10273006,143.32,143.27,9.65]
[1727111167606,9.65,143.32,143.27,9.65]
[1727111167810,9.65,143.32,143.29,3.4892]
[1727111168211,13.16557045,143.32,143.29,3.4892]
[1727111170321,13.16557045,143.32,143.27,9.65]
[1727111170912,3.4889,143.31,143.27,9.65]
[1727111171719,16.65417045,143.32,143.28,3.4893]
[1727111172027,13.16557045,143.32,143.28,3.4893]
[1727111172522,13.16557045,143.32,143.27,13.1396]
[1727111172720,13.16557045,143.32,143.25,2.6905]
[1727111172721,9.65,143.3,143.25,2.6905]
[1727111172923,13.1394,143.29,143.25,1.3568]
[1727111173117,13.1394,143.29,143.25,4.8468]
[1727111173716,9.65,143.29,143.25,1.3568]
[1727111174017,13.139,143.3,143.25,11.0068]
[1727111174222,16.67865926,143.3,143.27,3.4895]
[1727111174416,3.4893,143.29,143.27,3.4895]
[1727111174622,13.1393,143.29,143.25,1.3568]
[1727111174824,13.1393,143.29,143.26,3.4897]
[1727111175626,13.1393,143.29,143.27,3.4897]
[1727111176125,16.67865926,143.3,143.28,3.4894]
[1727111176328,3.42794302,143.34,143.29,9.65]
[1727111176533,3.42794302,143.34,143.31,9.65]
[1727111176730,6.91614302,143.34,143.31,13.1386]
[1727111176935,13.07794302,143.34,143.3,9.65]
[1727111177328,3.4883,143.33,143.3,13.1388]
[1727111178028,13.1381,143.34,143.31,3.4887]
[1727111178421,3.48984158,143.35,143.31,9.65]
[1727111178626,3.48984158,143.35,143.32,3.4884]
[1727111178829,9.65,143.38,143.34,9.65]
[1727111179028,9.65,143.38,143.33,9.65]
[1727111179229,13.1372,143.38,143.34,3.4879]
[1727111179439,13.1372,143.38,143.33,9.65]
[1727111179440,1.4164,143.4,143.33,9.65]
[1727111179640,2.6852,143.41,143.35,9.65]
[1727111179827,9.65,143.4,143.35,9.65]
[1727111180227,3.4869,143.39,143.36,3.4874]
[1727111180626,15.08,143.4,143.31,15.08]
[1727111180834,3.4875,143.37,143.33,3.4882]
[1727111181840,3.4875,143.37,143.34,3.488]
[1727111182533,3.4871,143.38,143.34,3.488]
[1727111182733,3.4871,143.38,143.32,15.08]
[1727111183243,3.4871,143.38,143.35,3.4876]
[1727111184243,3.4868,143.39,143.36,3.4875]
[1727111184438,2.6852,143.41,143.33,15.08]
[1727111184643,20.0318699,143.44,143.36,15.08]
[1727111184843,3.4862,143.42,143.39,3.4866]
[1727111185033,17.8478,143.46,143.32,21.47839436]
[1727111185240,3.4857,143.44,143.4,3.4865]
[1727111185442,2.7678,143.46,143.38,15.08]
[1727111185642,17.8478,143.46,143.37,1.4673]
[1727111185944,3.486,143.43,143.39,3.4866]
[1727111186439,3.486,143.43,143.32,6.39839436]
[1727111186440,15.08,143.42,143.33,15.08]
[1727111186644,15.08,143.42,143.33,1.4673]
[1727111186843,15.08,143.4,143.33,1.4673]
[1727111187044,15.08,143.42,143.33,16.5473]
[1727111187546,18.5662,143.42,143.38,3.4869]
[1727111188245,3.4863,143.41,143.38,3.4869]
[1727111190045,3.4863,143.41,143.37,3.4872]
[1727111190739,15.08,143.4,143.33,1.4673]
[1727111190945,15.08,143.39,143.33,1.4673]
[1727111191143,7.02244296,143.38,143.34,3.4879]
[1727111191532,7.02244296,143.38,143.33,1.4673]
[1727111191736,3.4874,143.37,143.33,1.4673]
[1727111192443,3.4874,143.37,143.34,3.4879]
[1727111193346,3.53534296,143.38,143.33,4.9554]
[1727111193542,15.08,143.39,143.33,4.9554]
[1727111194044,3.4875,143.37,143.33,4.9554]
[1727111194249,18.60501919,143.39,143.32,3.4883]
[1727111194447,15.08,143.37,143.32,3.4883]
[1727111194646,15.08,143.37,143.28,15.08]
[1727111195246,18.52406448,143.37,143.28,15.08]
[1727111195650,3.4879,143.35,143.31,3.4886]
[1727111196143,3.4884,143.33,143.3,3.4889]
[1727111196549,15.08,143.35,143.27,4.3592]
[1727111197437,3.4885,143.32,143.29,3.4891]
[1727111198350,3.4885,143.32,143.3,3.4889]
[1727111198752,3.4885,143.32,143.27,4.3592]
[1727111199052,3.4888,143.31,143.27,2.9062]
[1727111199250,15.08,143.32,143.23,17.9006]
[1727111199441,15.08,143.32,143.26,3.4897]
[1727111199850,15.08,143.32,143.27,3.4897]
[1727111200151,15.08,143.32,143.23,4.2061]
[1727111200456,3.44406448,143.37,143.23,4.2061]
[1727111200457,15.08,143.3,143.23,4.2061]
[1727111200946,3.4896,143.28,143.25,3.49]
[1727111201147,3.44435599,143.29,143.25,3.49]
[1727111201745,6.93365599,143.29,143.25,3.49]
[1727111204449,6.93365599,143.29,143.26,3.4899]
[1727111206753,15.08,143.32,143.27,3.4897]
[1727111206947,3.42632681,143.31,143.24,15.08]
[1727111207148,15.08,143.34,143.24,15.08]
[1727111207659,3.4889,143.31,143.27,3.4897]
[1727111209262,3.489,143.3,143.26,3.4899]
[1727111211067,3.489,143.3,143.27,3.4896]
[1727111211365,15.08,143.31,143.24,15.08]
[1727111211564,18.55765363,143.34,143.28,3.4894]
[1727111211763,3.4886,143.32,143.24,15.08]
[1727111211966,15.08,143.35,143.26,15.08]
[1727111212159,18.50319116,143.35,143.3,3.4889]
[1727111212659,15.08,143.34,143.24,15.08]
[1727111212963,3.4889,143.31,143.24,15.08]
[1727111213163,7.01155265,143.31,143.24,15.08]
[1727111213365,3.4889,143.31,143.24,15.08]
[1727111213665,3.4889,143.31,143.28,3.4893]
[1727111213852,6.92463821,143.31,143.28,3.4893]
[1727111216056,6.92463821,143.31,143.24,15.08]
[1727111216756,6.92463821,143.31,143.28,3.4894]
[1727111217661,3.4891,143.3,143.26,3.4899]
[1727111217870,15.08,143.32,143.26,3.4899]
[1727111218070,18.58150129,143.32,143.26,3.4899]
[1727111218958,3.4891,143.3,143.26,3.4899]
[1727111219471,3.4891,143.3,143.27,3.4897]
[1727111220874,3.4891,143.3,143.23,19.2861]
[1727111220875,3.4892,143.29,143.26,3.4898]
[1727111221061,15.08,143.3,143.23,4.2061]
[1727111221261,15.08,143.3,143.23,2.8407]
[1727111221462,3.4896,143.28,143.25,3.49]
[1727111221772,15.08,143.3,143.23,2.8407]
[1727111221970,3.4894,143.29,143.25,3.49]
[1727111222771,3.4894,143.29,143.26,3.4899]
[1727111223673,18.58150129,143.32,143.23,17.9207]
[1727111223969,15.08,143.32,143.24,1.4105]
[1727111224364,3.54039597,143.31,143.25,15.08]
[1727111224670,7.02919597,143.31,143.28,3.4893]
[1727111226267,18.5685,143.32,143.29,3.4892]
[1727111226567,15.08,143.32,143.29,3.4892]
[1727111226769,15.08,143.34,143.25,15.08]
[1727111227068,15.08,143.27,143.15,230.0]
[1727111227271,1.392,143.33,143.17,8.27609051]
[1727111227569,15.08,143.25,143.17,1.4271]
[1727111228076,16.472,143.33,143.17,1.4271]
[1727111228077,15.08,143.27,143.18,15.08]
[1727111228277,15.08,143.27,143.19,1.4271]
[1727111228569,15.08,143.25,143.19,4.9186]
[1727111228968,3.4907,143.23,143.19,4.9186]
[1727111229479,3.4907,143.23,143.19,1.4271]
[1727111229773,6.984133,143.23,143.19,1.4271]
[1727111229968,3.4907,143.23,143.19,1.4271]
[1727111230572,6.94326392,143.23,143.19,1.4271]
[1727111230773,6.94326392,143.23,143.19,4.9186]
[1727111231165,3.4909,143.22,143.19,1.4271]
[1727111231364,3.4909,143.22,143.16,2.8103]
[1727111231577,3.4909,143.22,143.18,3.4918]
[1727111232377,6.94326392,143.23,143.19,3.4916]
[1727111232584,3.45256392,143.23,143.16,2.8103]
[1727111232770,15.08,143.23,143.16,2.8103]
[1727111232971,18.52722039,143.23,143.16,2.8103]
[1727111233275,18.52722039,143.23,143.17,3.4919]
[1727111233576,18.52722039,143.23,143.14,8.3042]
[1727111233781,15.08,143.21,143.16,3.4922]
[1727111233980,15.08,143.21,143.14,8.3042]
[1727111234277,15.08,143.19,143.14,8.3042]
[1727111234486,15.08,143.19,143.14,1.3242]
[1727111234487,3.5097447,143.18,143.14,1.3242]
[1727111234681,7.0016447,143.18,143.14,11.7969]
[1727111235384,3.4912,143.21,143.17,3.4919]
[1727111235575,3.53602715,143.2,143.14,8.3042]
[1727111235881,3.4914,143.2,143.16,3.4922]
[1727111236181,15.08,143.21,143.14,8.3042]
[1727111236881,3.4918,143.19,143.16,3.4924]
[1727111238772,18.5712,143.21,143.17,3.492]
[1727111238983,3.4912,143.21,143.14,8.3042]
[1727111239177,3.4912,143.21,143.15,15.08]
[1727111239379,3.491,143.22,143.18,3.4917]
[1727111239572,3.491,143.22,143.17,15.08]
[1727111239773,3.42700052,143.23,143.19,15.08]
[1727111239977,1.3878,143.25,143.21,3.491]
[1727111239978,3.4903,143.25,143.21,3.491]
[1727111240399,3.4906,143.24,143.2,3.4913]
[1727111240578,3.46156855,143.23,143.2,3.4913]
[1727111241283,15.08,143.25,143.15,15.08]
[1727111242083,3.4907,143.23,143.15,15.08]
[1727111242283,3.41462496,143.22,143.15,15.08]
[1727111242490,15.08,143.25,143.17,15.08]
[1727111243383,3.4905,143.24,143.17,15.08]
[1727111244187,3.4905,143.24,143.21,3.4911]
[1727111244687,15.08,143.25,143.15,15.08]
[1727111244882,15.08,143.23,143.15,15.08]
[1727111245080,15.08,143.23,143.14,1.3242]
[1727111245081,18.51604286,143.23,143.14,1.3242]
[1727111245279,15.08,143.21,143.16,3.4922]
[1727111245681,3.4916,143.2,143.16,3.4922]
[1727111246785,3.4916,143.2,143.17,3.492]
[1727111247891,3.40565395,143.21,143.14,1.3242]
[1727111248088,15.08,143.23,143.15,15.08]
[1727111248284,3.4911,143.22,143.19,3.4915]
[1727111248476,15.08,143.23,143.19,3.4915]
[1727111248678,18.49614255,143.23,143.19,3.4915]
[1727111248989,6.90704255,143.23,143.19,3.4915]
[1727111249188,3.4909,143.23,143.19,3.4915]
[1727111249388,2.8684,143.24,143.19,3.4915]
[1727111249589,3.4909,143.23,143.19,3.4915]
[1727111249794,7.02514178,143.23,143.19,3.4915]
[1727111250089,3.4909,143.22,143.19,3.4915]
[1727111250787,3.46575821,143.21,143.19,3.4915]
[1727111251395,15.08,143.23,143.14,1.3242]
[1727111251690,15.08,143.21,143.14,1.3242]
[1727111252086,3.4918,143.19,143.14,1.3242]
[1727111252695,3.4918,143.19,143.16,3.4922]
[1727111255496,15.08,143.17,143.08,95.27467661]
[1727111255793,3.4924,143.16,143.13,3.4929]
[1727111256087,15.08,143.17,143.09,1.4095]
[1727111256289,3.44095566,143.16,143.14,3.4927]
[1727111256481,3.4922,143.17,143.14,3.4927]
[1727111256993,6.92252515,143.16,143.13,3.493]
[1727111257194,15.08,143.19,143.1,15.08]
[1727111257394,3.4921,143.18,143.1,15.08]
[1727111257594,15.08,143.19,143.1,15.08]
[1727111257796,3.41196617,143.18,143.1,15.08]
[1727111258293,15.08,143.21,143.1,15.08]
[1727111258602,15.08,143.21,143.12,15.08]
[1727111258603,18.58982036,143.21,143.12,15.08]
[1727111258891,18.58982036,143.21,143.16,3.4922]
[1727111258892,3.4917,143.19,143.16,3.4922]
[1727111259985,3.4915,143.2,143.12,15.08]
[1727111260599,3.4915,143.2,143.16,3.4922]
[1727111260992,3.4917,143.19,143.16,3.4922]
[1727111262199,2.8684,143.24,143.18,15.08]
[1727111262200,3.40835295,143.23,143.18,15.08]
[1727111262996,15.08,143.27,143.18,15.08]
[1727111263192,3.4906,143.24,143.2,3.4913]
[1727111263389,3.47089475,143.23,143.2,3.4913]
[1727111263695,3.4906,143.24,143.2,3.4913]
[1727111264001,3.44748525,143.23,143.16,15.08]
[1727111264198,15.08,143.25,143.16,15.08]
[1727111264803,15.08,143.23,143.14,2.7624]
[1727111265103,18.59264297,143.23,143.14,2.7624]
[1727111266293,15.08,143.21,143.14,2.7624]
[1727111266706,3.4915,143.2,143.14,17.8424]
[1727111266905,3.50356186,143.19,143.14,17.8424]
[1727111267200,3.50356186,143.19,143.16,3.4922]
[1727111267806,6.99526186,143.19,143.16,3.4922]
[1727111268109,3.4917,143.19,143.16,3.4922]
[1727111268300,3.4915,143.2,143.14,1.3273]
[1727111268902,3.4915,143.2,143.17,3.492]
[1727111269406,6.9625487,143.21,143.18,3.4917]
[1727111269608,3.4713487,143.21,143.18,3.4917]
[1727111270007,3.4713487,143.21,143.19,3.4916]
[1727111273601,3.491,143.22,143.19,3.4916]
[1727111273797,2.8511,143.28,143.16,15.08]
[1727111274002,16.12496483,143.27,143.18,15.08]
[1727111274196,15.08,143.27,143.18,15.08]
[1727111274398,3.4898,143.27,143.19,1.4287]
[1727111274799,3.4898,143.27,143.2,1.3834]
[1727111275000,3.4898,143.27,143.23,3.4906]
[1727111276401,3.4899,143.26,143.23,3.4906]
[1727111276908,15.08,143.27,143.22,3.4908]
[1727111277810,15.08,143.25,143.21,3.491]
[1727111278005,17.9311,143.28,143.2,1.3834]
[1727111278206,21.4207,143.28,143.24,3.4902]
[1727111278601,17.9311,143.28,143.24,3.4902]
[1727111278807,3.4898,143.27,143.23,3.4906]
[1727111280413,15.08,143.26,143.16,15.08]
[1727111280607,15.08,143.26,143.16,17.8639]
[1727111281009,18.5706,143.24,143.2,3.4913]
[1727111281205,3.52951449,143.23,143.16,17.8639]
[1727111281710,3.52951449,143.23,143.21,3.4911]
[1727111281903,3.52951449,143.23,143.16,2.7839]
[1727111282109,3.52951449,143.23,143.21,3.4911]
[1727111282316,7.02031449,143.23,143.16,2.7839]
[1727111282814,7.02031449,143.23,143.2,3.4912]
[1727111283112,3.52951449,143.23,143.16,2.7839]
[1727111283312,3.52951449,143.23,143.16,17.8639]
[1727111283510,3.52951449,143.23,143.21,3.491]
[1727111284812,3.52951449,143.23,143.16,17.8639]
[1727111284813,3.4902,143.25,143.18,15.08]
[1727111285116,16.4507,143.3,143.2,15.08]
[1727111285312,3.4896,143.28,143.25,3.49]
[1727111286214,3.4897,143.27,143.22,1.4064]
[1727111287020,15.08,143.28,143.22,1.4064]
[1727111287021,3.49,143.26,143.23,3.4905]
[1727111287320,3.49,143.26,143.18,15.08]
[1727111287510,3.49,143.26,143.18,16.461]
[1727111288223,3.4898,143.27,143.24,3.4903]
[1727111289924,3.4901,143.26,143.19,15.08]
[1727111290310,18.5698,143.27,143.24,3.4903]
[1727111290515,15.08,143.27,143.19,15.08]
[1727111290926,3.4901,143.26,143.23,3.4907]
[1727111291322,15.08,143.25,143.18,1.381]
[1727111292223,3.4905,143.24,143.21,3.4911]
[1727111292415,3.44090528,143.23,143.21,3.4911]
[1727111292925,15.08,143.25,143.18,1.381]
[1727111292926,15.08,143.27,143.18,1.381]
[1727111293329,3.49,143.26,143.22,3.4907]
[1727111294620,15.08,143.27,143.22,3.4907]
[1727111294621,3.4903,143.25,143.22,3.4907]
[1727111297426,15.08,143.29,143.21,15.08]
[1727111297728,1.04341634,143.28,143.21,15.08]
[1727111297932,3.4898,143.27,143.24,3.4903]
[1727111300220,3.4895,143.28,143.25,3.4901]
[1727111303125,3.4898,143.27,143.24,3.4903]
[1727111303327,15.08,143.29,143.23,1.461]
[1727111303532,15.08,143.27,143.17,15.08]
[1727111303838,15.08,143.27,143.18,1.4407]
[1727111304128,3.4903,143.25,143.22,3.4908]
[1727111304828,3.4903,143.25,143.18,1.4407]
[1727111304829,3.4905,143.24,143.21,3.4911]
[1727111305026,15.08,143.27,143.18,1.4407]
[1727111305626,3.49,143.26,143.23,3.4906]
[1727111305927,15.08,143.29,143.21,15.08]
[1727111306428,3.4898,143.27,143.24,3.4904]
[1727111306621,15.08,143.29,143.21,15.08]
[1727111306817,15.08,143.29,143.19,15.08]
[1727111307024,3.4901,143.26,143.23,3.4905]
[1727111308129,3.4901,143.26,143.18,1.4407]
[1727111308130,15.08,143.26,143.18,1.4407]
[1727111308529,15.08,143.24,143.18,1.4407]
[1727111309432,18.57504023,143.24,143.18,1.4407]
[1727111309837,3.491,143.22,143.19,3.4916]
[1727111312432,3.4912,143.21,143.18,3.4918]
[1727111312730,15.08,143.22,143.17,1.4332]
[1727111313234,3.4915,143.2,143.17,1.4332]
[1727111314033,3.4915,143.2,143.17,4.9253]
[1727111315639,3.4917,143.19,143.17,1.4332]
[1727111315834,3.57018095,143.21,143.17,1.4332]
[1727111316241,3.57018095,143.21,143.13,17.8441]
[1727111316537,15.08,143.22,143.13,17.8441]
[1727111316736,15.08,143.2,143.13,2.7641]
[1727111316936,3.53119977,143.19,143.13,2.7641]
[1727111317125,3.492,143.18,143.13,2.7641]
[1727111317326,3.53119977,143.19,143.13,2.7641]
[1727111317534,3.4925,143.16,143.13,4.9238]
[1727111317929,15.08,143.18,143.13,1.4308]
[1727111318128,3.4927,143.15,143.1,1.3734]
[1727111318735,3.4929,143.14,143.11,3.4935]
[1727111318938,15.08,143.17,143.1,1.3734]
[1727111319443,15.08,143.17,143.1,4.8671]
[1727111319444,3.493,143.14,143.1,4.8671]
[1727111319738,7.0061073,143.14,143.1,4.8671]
[1727111319935,3.493,143.14,143.1,4.8671]
[1727111320541,6.95787242,143.14,143.1,4.8671]
[1727111321438,3.493,143.14,143.11,3.4935]
[1727111321743,3.493,143.14,143.1,1.3734]
[1727111322337,3.493,143.14,143.11,3.4936]
[1727111322738,15.08,143.17,143.1,1.3734]
[1727111323241,3.43260626,143.16,143.1,1.3734]
[1727111323843,3.4926,143.15,143.12,3.4932]
[1727111324742,3.4929,143.14,143.11,3.4935]
[1727111324943,15.08,143.17,143.09,1.4166]
[1727111325343,3.4931,143.14,143.1,3.4937]
[1727111325536,6.92151163,143.14,143.1,3.4937]
[1727111327041,15.08,143.18,143.09,16.4966]
[1727111327640,3.4924,143.16,143.13,3.493]
[1727111327836,6.97684704,143.16,143.13,3.493]
[1727111328044,3.4924,143.16,143.13,3.493]
[1727111328241,3.4922,143.17,143.13,3.493]
[1727111329344,1.3974,143.19,143.11,15.08]
[1727111330045,3.492,143.18,143.11,15.08]
[1727111330346,3.492,143.18,143.11,16.4477]
[1727111330833,19.9612,143.2,143.11,16.4477]
[1727111331033,3.4915,143.2,143.13,15.08]
[1727111331244,3.4915,143.2,143.14,1.3872]
[1727111331446,3.4917,143.19,143.14,1.3872]
[1727111332147,3.4917,143.19,143.15,3.4925]
[1727111335452,15.08,143.2,143.14,1.3872]
[1727111335657,15.08,143.18,143.11,1.3677]
[1727111336155,15.08,143.18,143.12,3.4932]
[1727111336353,15.08,143.18,143.11,1.3677]
[1727111337053,3.4925,143.16,143.12,3.4932]
[1727111337265,6.99588947,143.16,143.12,3.4932]
[1727111337556,3.4925,143.16,143.12,3.4932]
[1727111337957,6.98505713,143.16,143.12,3.4932]
[1727111338165,3.4926,143.15,143.12,3.4932]
[1727111338366,3.4926,143.15,143.11,3.4935]
[1727111340161,3.4927,143.15,143.11,3.4935]
[1727111340358,15.08,143.14,143.1,3.4937]
[1727111341263,18.63829721,143.14,143.1,3.4937]
[1727111341658,3.4931,143.13,143.1,3.4937]
[1727111342056,3.4931,143.13,143.09,4.9294]
[1727111343964,3.4931,143.13,143.09,3.494]
[1727111348469,9.66,143.12,143.09,3.494]
[1727111348858,13.1534,143.12,143.09,3.494]
[1727111349269,9.66,143.1,142.93,230.0]
[1727111349462,1.4562,143.17,142.93,230.0]
[1727111349463,9.66,143.03,143.01,1.3578]
[1727111349870,9.66,143.03,143.01,4.8537]
[1727111351362,1.3655,143.11,143.02,9.66]
[1727111351670,9.66,143.05,143.01,1.3578]
[1727111351863,9.66,143.04,143.02,3.4956]
[1727111352465,13.1548,143.06,143.03,3.4954]
[1727111352663,16.59957862,143.06,143.01,1.3578]
[1727111352864,9.66,143.04,143.01,1.3578]
[1727111353269,9.66,143.03,143.02,3.4956]
[1727111354274,15.11,143.05,142.96,18.6637999]
[1727111354570,15.11,143.05,142.97,1.415]
[1727111354763,3.4954,143.04,143.01,3.4958]
[1727111355674,3.53220955,143.06,143.02,3.4958]
[1727111355875,3.53220955,143.06,142.98,15.11]
[1727111355876,15.11,143.07,142.98,15.11]
[1727111356072,3.495,143.06,142.98,15.11]
[1727111356469,6.98758579,143.06,142.98,15.11]
[1727111356671,3.4951,143.05,143.02,3.4956]
[1727111357468,3.4953,143.04,143.01,3.4959]
[1727111357669,15.11,143.05,143.01,3.4959]
[1727111357869,15.11,143.05,142.97,1.415]
[1727111358068,3.49258579,143.06,142.98,15.11]
[1727111358369,15.11,143.07,142.98,15.11]
[1727111358874,6.9654469,143.06,143.02,3.4957]
[1727111359167,3.4704469,143.06,143.02,3.4957]
[1727111359372,15.11,143.07,143.01,3.4959]
[1727111359574,15.11,143.05,143.01,3.4959]
[1727111359762,18.59478614,143.05,143.01,3.4959]
[1727111360074,22.08998614,143.05,143.02,3.4958]
[1727111362971,22.08998614,143.05,143.01,3.4959]
[1727111363574,18.59478614,143.05,142.97,1.415]
[1727111364366,22.08998614,143.05,143.02,3.4957]
[1727111364571,18.59478614,143.05,142.97,1.415]
[1727111364974,3.4954,143.04,143.01,3.4959]
[1727111365170,18.59478614,143.05,143.01,3.4959]
[1727111365473,22.08998614,143.05,143.01,3.4959]
[1727111366676,3.4953,143.04,143.01,3.4959]
[1727111366865,3.48478614,143.05,142.97,16.525]
[1727111367068,15.11,143.07,142.97,16.525]
[1727111367383,15.11,143.07,142.99,15.11]
[1727111367384,3.4372158,143.06,142.99,15.11]
[1727111367865,3.4372158,143.06,142.97,16.525]
[1727111368377,3.4953,143.04,143.01,3.4959]
[1727111368675,3.4372158,143.06,143.01,3.4959]
[1727111368676,15.11,143.05,143.01,3.4959]
[1727111369272,1.3655,143.11,142.97,1.415]
[1727111369273,15.11,143.03,142.97,1.415]
[1727111369668,3.4959,143.02,142.97,1.415]
[1727111370279,3.4959,143.02,142.99,3.4964]
[1727111370967,18.6057,143.03,142.99,3.4964]
[1727111371482,3.4958,143.02,142.99,3.4964]
[1727111371978,18.59408667,143.05,142.98,15.11]
[1727111372180,3.4954,143.04,142.98,15.11]
[1727111372573,3.57821756,143.03,143.0,3.4961]
[1727111373072,3.4954,143.04,143.01,3.496]
[1727111373378,6.93054483,143.04,143.01,3.496]
[1727111373679,16.5373,143.07,143.02,3.4957]
[1727111373864,3.52084855,143.06,142.99,15.11]
[1727111374179,15.11,143.09,142.99,15.11]
[1727111374379,3.4946,143.07,143.03,3.4953]
[1727111374678,18.52730447,143.09,143.03,3.4953]
[1727111375580,3.4948,143.07,143.03,3.4953]
[1727111375968,3.4948,143.07,143.0,1.4697]
[1727111376367,13.1648,143.07,143.02,9.67]
[1727111376576,13.1648,143.07,143.04,3.4952]
[1727111376779,3.41730447,143.09,143.02,9.67]
[1727111376984,3.41730447,143.09,143.0,1.4697]
[1727111376985,9.67,143.09,143.04,9.67]
[1727111377168,3.4425768,143.08,143.04,9.67]
[1727111377567,3.4425768,143.08,143.05,3.495]
[1727111377968,9.67,143.07,143.05,3.495]
[1727111379579,2.7815,143.12,143.06,9.67]
[1727111379880,9.67,143.11,143.07,9.67]
[1727111380477,9.67,143.11,143.09,3.4939]
[1727111380980,9.67,143.12,143.1,3.4938]
[1727111381184,2.6937,143.16,143.09,9.67]
[1727111381185,9.67,143.15,143.09,9.67]
[1727111381481,3.44543102,143.17,143.14,3.4927]
[1727111381777,9.67,143.17,143.14,3.4927]
[1727111381979,13.18034673,143.17,143.14,3.4927]
[1727111382374,3.492,143.18,143.14,3.4927]
[1727111382779,4.9137,143.19,143.15,3.4925]
[1727111383285,8.4086658,143.19,143.15,3.4925]
[1727111383685,6.9866658,143.19,143.15,3.4925]
[1727111384383,15.1,143.18,143.12,1.3696]
[1727111384891,3.4924,143.17,143.13,3.493]
[1727111385789,3.4917,143.19,143.15,3.4925]
[1727111386090,16.5407,143.21,143.12,1.3696]
[1727111386383,1.04091204,143.2,143.12,1.3696]
[1727111386890,3.4918,143.19,143.15,3.4925]
[1727111388196,16.1408992,143.18,143.07,1.3374]
[1727111388495,15.1,143.18,143.09,1.4006]
[1727111388891,3.4923,143.17,143.13,3.4931]
[1727111389583,3.4924,143.16,143.13,3.4931]
[1727111390394,1.3864,143.19,143.09,16.5006]
[1727111390586,1.04079874,143.18,143.09,16.5006]
[1727111391193,4.53279874,143.18,143.14,3.4927]
[1727111391396,3.492,143.18,143.14,3.4927]
[1727111391989,3.4921,143.17,143.14,3.4927]
[1727111392587,3.4921,143.17,143.13,3.4931]
[1727111393195,3.4924,143.16,143.13,3.4931]
[1727111395308,3.4924,143.16,143.12,3.4932]
[1727111397099,1.3864,143.19,143.09,16.5006]